bitfinex/quotes_ETHUSD_20251107
["timestamp","ask_amount","ask_price","bid_price","bid_amount"]
[1762515067946,0.1913,3240.8,3239.5,0.1996]
[1762515068151,3.5599157,3240.7,3239.5,0.1996]
[1762515068665,1.259712,3240.4,3239.5,0.1996]
[1762515068859,3.08596202,3240.5,3239.5,0.1996]
[1762515069173,1.259712,3240.4,3239.5,0.1996]
[1762515069571,1.733812,3240.6,3239.5,0.1996]
[1762515069775,0.4741,3240.6,3239.5,0.1996]
[1762515070378,1.259712,3240.5,3239.5,0.1996]
[1762515070540,3.56002238,3240.6,3239.1,0.4812]
[1762515070541,1.733812,3240.6,3239.1,0.4812]
[1762515070878,1.259712,3240.4,3239.1,0.4812]
[1762515071050,1.259712,3240.0,3239.0,0.001]
[1762515071486,0.1238,3239.9,3239.0,0.001]
[1762515071906,0.4741,3239.8,3239.0,0.001]
[1762515072287,3.08689612,3239.5,3239.0,0.001]
[1762515072812,3.56099612,3239.5,3239.0,0.001]
[1762515073235,3.08727733,3239.1,3239.0,0.001]
[1762515073523,4.34698933,3239.1,3239.0,0.001]
[1762515073723,4.82108933,3239.1,3239.0,0.001]
[1762515074110,1.733812,3239.1,3239.0,0.001]
[1762515074312,4.82108933,3239.1,3239.0,0.001]
[1762515074512,0.1238,3239.9,3239.0,0.001]
[1762515074822,0.1238,3239.9,3239.1,0.1845]
[1762515075050,1.383512,3239.9,3239.0,0.001]
[1762515075244,0.1238,3239.9,3239.1,0.1845]
[1762515075899,0.1238,3240.2,3239.1,0.1845]
[1762515076080,0.1944,3240.5,3239.2,0.52763741]
[1762515076280,0.1913,3240.8,3239.2,0.52763741]
[1762515076281,0.1913,3240.8,3239.2,0.5]
[1762515076534,0.1913,3240.8,3239.2,3.61473631]
[1762515076684,0.1913,3240.8,3239.2,0.52763206]
[1762515076883,1.451012,3240.8,3239.3,0.5]
[1762515077178,1.451012,3240.8,3239.1,0.1845]
[1762515077179,0.6872,3240.8,3239.1,0.1845]
[1762515077381,1.755612,3240.7,3239.1,0.1845]
[1762515077630,3.08629318,3240.2,3239.1,0.1845]
[1762515077935,1.259712,3240.4,3239.2,0.5]
[1762515078094,0.1905,3240.8,3239.2,0.5]
[1762515078280,0.6864,3240.8,3239.2,0.5]
[1762515078476,1.946112,3240.8,3239.1,0.1845]
[1762515078689,1.946112,3240.8,3239.0,0.001]
[1762515078690,1.259712,3239.8,3239.0,0.001]
[1762515078922,1.259712,3240.2,3239.1,0.6845]
[1762515079215,0.1944,3241.0,3239.2,0.02763741]
[1762515079419,0.1944,3241.0,3240.1,0.1845]
[1762515079715,0.1944,3241.0,3239.3,0.5]
[1762515079716,0.6304,3240.9,3239.3,0.5]
[1762515079904,1.259712,3240.5,3239.1,0.1845]
[1762515080108,1.259712,3240.1,3239.1,0.1845]
[1762515080309,4.34596081,3240.2,3239.1,0.1845]
[1762515080610,4.34622999,3239.9,3238.8,0.5]
[1762515080780,0.4959,3240.1,3238.8,0.5]
[1762515080981,0.1944,3239.8,3238.8,0.5]
[1762515081182,1.259712,3240.2,3239.1,0.1845]
[1762515081417,1.259712,3240.0,3239.1,0.1845]
[1762515081602,1.259712,3240.0,3238.7,0.001]
[1762515081807,0.1944,3239.2,3238.7,0.001]
[1762515082187,0.4959,3239.1,3238.7,0.001]
[1762515082784,1.755612,3239.1,3238.7,0.001]
[1762515083116,4.84288933,3239.1,3238.7,0.001]
[1762515083723,1.755612,3239.1,3238.7,0.001]
[1762515084016,4.84288933,3239.1,3238.7,0.001]
[1762515084324,1.259712,3239.1,3238.7,0.001]
[1762515084685,0.4959,3240.3,3239.0,0.501]
[1762515084884,0.4959,3240.3,3239.1,0.21214509]
[1762515085108,0.4959,3240.3,3239.1,0.1845]
[1762515085320,0.1944,3239.2,3239.0,0.001]
[1762515085729,0.1944,3239.5,3239.0,0.001]
[1762515086485,0.4959,3240.0,3239.1,0.1845]
[1762515086819,0.4959,3240.0,3239.0,0.001]
[1762515086820,3.28109484,3239.8,3239.0,0.001]
[1762515087021,3.08716423,3239.3,3239.0,0.001]
[1762515087206,0.4959,3239.7,3239.0,0.001]
[1762515087513,4.34664228,3239.5,3239.0,0.001]
[1762515087719,1.755612,3239.7,3239.0,0.001]
[1762515087917,1.259712,3239.6,3239.0,0.001]
[1762515088119,1.259712,3239.3,3239.0,0.001]
[1762515088416,4.34676527,3239.4,3239.0,0.001]
[1762515088592,3.0871199,3239.3,3239.0,0.001]
[1762515088780,3.5830199,3239.3,3239.0,0.001]
[1762515088985,4.34698933,3239.1,3239.0,0.001]
[1762515089394,4.84288933,3239.1,3239.0,0.001]
[1762515090120,3.08756329,3238.8,3238.7,0.001]
[1762515090324,4.38586983,3238.8,3238.7,0.001]
[1762515090519,4.88176983,3238.8,3238.7,0.001]
[1762515090820,4.34737062,3238.7,3238.6,0.001]
[1762515091139,1.259712,3238.7,3238.6,0.001]
[1762515091285,0.4959,3239.1,3238.6,0.001]
[1762515091286,1.259712,3238.9,3238.6,0.001]
[1762515091488,0.4959,3239.1,3238.6,0.001]
[1762515092515,3.08749097,3238.9,3238.6,0.001]
[1762515092731,0.4959,3239.1,3238.6,0.001]
[1762515092916,1.259712,3238.8,3238.6,0.001]
[1762515093118,3.08759203,3238.8,3238.6,0.001]
[1762515093984,3.08759675,3238.8,3238.6,0.001]
[1762515094212,1.259712,3238.7,3238.6,0.001]
[1762515095609,3.33385862,3238.7,3238.6,0.001]
[1762515096012,0.2462,3238.7,3238.6,0.001]
[1762515096224,3.33385862,3238.7,3238.6,0.001]
[1762515096443,0.2462,3238.7,3238.6,0.001]
[1762515096641,0.35075978,3239.6,3238.6,0.4829]
[1762515096839,0.1944,3239.9,3238.7,0.9819]
[1762515097026,0.1944,3239.9,3238.7,0.4819]
[1762515097214,1.259712,3239.2,3238.6,0.001]
[1762515097559,3.08726642,3239.2,3238.6,0.001]
[1762515097738,1.259712,3239.1,3238.6,0.001]
[1762515098034,1.259712,3238.9,3238.6,0.001]
[1762515098210,1.259712,3239.0,3238.6,0.001]
[1762515098639,0.2461,3238.7,3238.6,0.001]
[1762515098846,4.34737062,3238.7,3238.6,0.001]
[1762515099003,4.84327062,3238.7,3238.6,0.001]
[1762515099208,4.34737062,3238.7,3238.6,0.001]
[1762515099402,1.259712,3238.7,3238.6,0.001]
[1762515099803,4.34737062,3238.7,3238.6,0.001]
[1762515100010,4.81427062,3238.7,3238.6,0.001]
[1762515101012,4.81347062,3238.7,3238.6,0.001]
[1762515101213,4.85206635,3238.7,3238.6,0.001]
[1762515101426,5.20282613,3238.7,3238.6,0.001]
[1762515101620,5.1642304,3238.7,3238.6,0.001]
[1762515102607,3.08804002,3238.3,3238.2,1e-08]
[1762515102928,5.1654118,3238.3,3238.2,1e-08]
[1762515103264,5.6502203,3238.3,3238.2,1e-08]
[1762515103624,5.7002203,3238.3,3238.2,1e-08]
[1762515104270,4.34803812,3238.0,3237.9,0.001]
[1762515104476,4.38664219,3238.0,3237.9,0.001]
[1762515104679,5.1845979,3238.0,3237.9,0.001]
[1762515104886,4.83383812,3238.0,3237.9,0.001]
[1762515106221,5.1845979,3238.0,3237.9,0.001]
[1762515107231,4.83383812,3238.0,3237.9,0.001]
[1762515108762,5.1845979,3238.0,3237.9,0.001]
[1762515109835,5.4405979,3238.0,3237.9,0.001]
[1762515110433,5.08983812,3238.0,3237.9,0.001]
[1762515110639,4.34803812,3238.0,3237.9,0.001]
[1762515110844,4.60633812,3238.0,3237.9,0.001]
[1762515111162,5.08763812,3238.0,3237.9,0.001]
[1762515111955,1.259712,3238.0,3237.9,0.001]
[1762515112127,4.34803812,3238.0,3237.9,0.001]
[1762515112571,5.47690197,3238.0,3237.9,0.001]
[1762515112786,5.4382979,3238.0,3237.9,0.001]
[1762515115003,4.9547979,3238.0,3237.9,0.001]
[1762515115216,4.34803812,3238.0,3237.9,0.001]
[1762515115818,4.60633812,3238.0,3237.9,0.001]
[1762515116436,5.39673812,3238.0,3237.9,0.001]
[1762515116597,5.4383979,3238.0,3237.9,0.001]
[1762515117799,5.47700197,3238.0,3237.9,0.001]
[1762515118117,5.7474979,3238.0,3237.9,0.001]
[1762515118290,5.4383979,3238.0,3237.9,0.001]
[1762515119121,5.7474979,3238.0,3237.9,0.001]
[1762515119323,5.4383979,3238.0,3237.9,0.001]
[1762515119812,5.08763812,3238.0,3237.9,0.001]
[1762515120483,5.39673812,3238.0,3237.9,0.001]
[1762515120688,3.39780768,3237.6,3237.5,0.001]
[1762515120980,5.0516883,3237.6,3237.5,0.001]
[1762515121213,5.5374883,3237.6,3237.5,0.001]
[1762515121436,4.34870591,3237.3,3237.2,0.001]
[1762515121629,7.25207811,3237.3,3237.2,0.001]
[1762515121832,3.08966199,3236.6,3236.1,0.001]
[1762515121991,4.35757399,3236.6,3236.1,0.001]
[1762515122193,5.19413377,3236.6,3236.1,0.001]
[1762515122588,5.23275454,3236.6,3236.1,0.001]
[1762515123215,5.19413377,3236.6,3236.1,0.001]
[1762515123955,5.19333377,3236.6,3236.1,0.001]
[1762515124240,3.09004387,3236.2,3236.1,0.001]
[1762515124530,5.29791565,3236.2,3236.1,0.001]
[1762515124681,5.47461565,3236.2,3236.1,0.001]
[1762515125327,4.70051565,3236.2,3236.1,0.001]
[1762515125629,0.0972,3237.8,3236.1,0.6494]
[1762515125788,0.1893,3238.1,3236.2,0.02770589]
[1762515125987,3.08905016,3237.3,3236.3,0.4548]
[1762515126188,0.1913,3238.6,3237.5,0.1936]
[1762515126731,0.1913,3238.6,3237.6,0.4548]
[1762515127037,0.002,3238.6,3238.1,0.1936]
[1762515127395,0.002,3238.6,3238.1,0.6484]
[1762515128764,0.48662503,3238.2,3238.1,0.6484]
[1762515128979,0.002,3238.6,3238.1,0.6484]
[1762515129333,0.002,3238.6,3238.2,0.4548]
[1762515129642,3.08792811,3238.5,3238.2,0.4548]
[1762515129845,0.002,3238.6,3238.2,0.4548]
[1762515129846,1.259712,3238.3,3238.2,0.4548]
[1762515130073,0.002,3238.6,3238.2,0.4548]
[1762515130933,1.259712,3238.5,3238.2,0.4548]
[1762515131128,0.002,3238.6,3238.1,0.1936]
[1762515131373,0.002,3238.6,3237.5,0.1936]
[1762515131374,1.259712,3237.8,3237.5,0.1936]
[1762515131527,3.08784931,3238.5,3237.5,0.1936]
[1762515131726,0.0385993,3238.4,3237.5,0.1936]
[1762515131926,1.259712,3237.6,3237.5,0.1936]
[1762515132130,3.08813538,3238.2,3237.5,0.1936]
[1762515132377,4.34841968,3237.6,3237.5,0.1936]
[1762515132528,1.259712,3237.5,3237.2,0.1936]
[1762515132748,3.08846691,3237.9,3236.3,0.4548]
[1762515132749,3.08956653,3236.7,3236.3,0.4548]
[1762515132974,3.09004387,3236.2,3236.1,0.001]
[1762515133133,4.34975587,3236.2,3236.1,0.001]
[1762515133770,4.38838141,3236.2,3236.1,0.001]
[1762515134344,1.259712,3236.2,3236.1,0.001]
[1762515134665,4.34975587,3236.2,3236.1,0.001]
[1762515135940,4.34975587,3236.2,3236.1,0.198]
[1762515136554,4.34975587,3236.2,3236.1,0.001]
[1762515136870,1.259712,3236.2,3236.1,0.198]
[1762515137046,4.34975587,3236.2,3236.1,0.6966]
[1762515137244,1.259712,3236.2,3236.1,0.6966]
[1762515137566,0.92921114,3237.7,3236.1,0.6966]
[1762515137774,0.00962464,3238.1,3237.2,0.197]
[1762515137964,0.00962464,3238.1,3237.3,0.4986]
[1762515139157,1.259712,3237.8,3237.3,0.4986]
[1762515139380,0.00962464,3238.1,3237.3,0.4986]
[1762515139580,1.26933664,3238.1,3237.3,0.4986]
[1762515139772,3.09786024,3238.1,3237.3,0.4986]
[1762515139974,3.09786024,3238.1,3236.1,3.24086426]
[1762515139975,3.08848466,3237.9,3236.1,3.24086426]
[1762515140302,0.00962464,3238.1,3236.1,0.17843445]
[1762515140658,0.48472344,3238.0,3237.2,3.08900369]
[1762515140864,0.48472344,3238.0,3237.1,3.08912478]
[1762515141061,0.48472344,3238.0,3237.2,3.08907585]
[1762515141290,0.48472344,3238.0,3236.3,3.08994839]
[1762515141587,0.48472344,3238.0,3236.0,0.001]
[1762515141588,0.48472344,3238.0,3236.4,0.02769959]
[1762515141788,0.48472344,3238.0,3236.2,0.02770054]
[1762515141976,0.48472344,3238.0,3236.3,0.4447]
[1762515142581,1.259712,3237.8,3236.3,0.4447]
[1762515142767,1.259712,3237.9,3236.3,0.4447]
[1762515143091,3.08848278,3237.9,3236.3,0.4447]
[1762515143256,0.48472344,3238.0,3236.3,0.4447]
[1762515143456,0.48472344,3238.0,3236.4,0.02769959]
[1762515143670,1.259712,3237.2,3236.1,0.15073]
[1762515143990,0.1965,3237.9,3236.2,0.4447]
[1762515144191,3.08890434,3237.4,3236.2,0.4447]
[1762515144400,0.1965,3237.9,3236.2,0.4447]
[1762515144401,1.259712,3237.2,3236.2,0.4447]
[1762515144572,1.259712,3236.5,3236.1,0.15073]
[1762515145094,1.259712,3236.4,3236.1,0.15073]
[1762515145291,1.259712,3237.1,3236.0,0.001]
[1762515145491,1.259712,3236.4,3236.0,0.001]
[1762515145796,4.34985136,3236.1,3236.0,0.001]
[1762515145962,3.09013936,3236.1,3236.0,0.001]
[1762515146288,4.34985136,3236.1,3236.0,0.001]
[1762515146695,4.34905136,3236.1,3236.0,0.001]
[1762515146897,1.259712,3236.1,3236.0,0.001]
[1762515148428,1.259712,3236.1,3236.0,0.4457]
[1762515148720,1.259712,3236.1,3236.0,0.001]
[1762515150092,3.33494781,3237.9,3236.0,0.4457]
[1762515150093,0.1965,3237.4,3236.0,0.4457]
[1762515150426,0.92895794,3237.6,3236.0,0.4457]
[1762515150610,0.00962464,3238.1,3236.0,0.47340837]
[1762515150810,3.08852302,3237.8,3236.0,3.56363124]
[1762515151012,0.48481182,3237.6,3236.0,3.53592287]
[1762515151213,0.48481182,3237.6,3236.1,0.4447]
[1762515151214,1.74452382,3237.6,3236.1,0.4447]
[1762515151387,1.29832203,3237.5,3236.0,0.001]
[1762515151593,1.259712,3237.2,3236.0,0.4457]
[1762515151951,3.08945672,3236.9,3236.0,0.4457]
[1762515152095,0.48481182,3237.6,3236.0,0.4457]
[1762515152426,1.259712,3237.2,3236.0,0.4457]
[1762515152615,1.259712,3237.3,3236.0,0.4457]
[1762515152812,0.48481182,3237.6,3236.0,0.4457]
[1762515153012,0.03861003,3237.5,3236.0,0.4457]
[1762515153218,3.08914841,3237.2,3236.0,0.4457]
[1762515153414,0.98371182,3237.6,3236.1,0.02771058]
[1762515153415,0.48481182,3237.6,3236.1,0.02771058]
[1762515153630,3.5735195,3237.6,3236.0,0.4457]
[1762515153927,1.259712,3237.5,3236.0,0.4457]
[1762515154345,0.1965,3237.9,3236.0,0.4457]
[1762515154346,1.259712,3237.7,3236.0,0.4457]
[1762515154515,3.08899391,3237.3,3236.0,0.001]
[1762515154702,1.259712,3236.7,3236.0,0.001]
[1762515155023,1.259712,3237.0,3236.0,0.4457]
[1762515155225,3.08952686,3236.8,3236.0,0.4457]
[1762515155439,0.1965,3236.9,3236.0,0.001]
[1762515155604,1.259712,3237.1,3236.0,0.001]
[1762515155605,1.259712,3236.4,3236.0,0.001]
[1762515155905,3.09005099,3236.2,3236.0,0.001]
[1762515156116,1.259712,3236.1,3236.0,0.001]
[1762515156345,4.34985136,3236.1,3236.0,0.001]
[1762515156505,0.03862554,3236.2,3236.0,0.001]
[1762515156705,4.3883853,3236.2,3236.0,0.001]
[1762515156952,0.52361138,3236.1,3236.0,0.001]
[1762515157162,4.834836,3236.1,3236.0,0.001]
[1762515157884,5.333736,3236.1,3236.0,0.001]
[1762515158004,1.74469664,3236.1,3236.0,0.001]
[1762515158844,1.259712,3236.1,3236.0,0.001]
[1762515159057,1.259712,3236.1,3236.0,0.4457]
[1762515159283,4.84875136,3236.1,3236.0,0.001]
[1762515159572,4.84875136,3236.1,3235.7,1.231]
[1762515159573,4.35013786,3235.8,3235.7,0.731]
[1762515159728,4.35023337,3235.7,3235.6,0.001]
[1762515160060,0.1812,3235.9,3235.6,0.001]
[1762515160363,0.92952928,3236.1,3235.6,0.02872787]
[1762515160364,2.18924128,3236.1,3235.6,0.02872787]
[1762515160567,0.4913,3237.5,3235.7,0.471]
[1762515160788,0.2465,3237.9,3235.7,0.471]
[1762515160789,3.08956355,3236.8,3235.8,0.02771314]
[1762515160990,3.08975197,3236.6,3235.7,0.471]
[1762515161267,0.1226,3236.9,3235.7,0.471]
[1762515161268,3.08984014,3236.5,3235.7,0.471]
[1762515161575,1.259712,3236.5,3235.7,0.471]
[1762515161808,0.1226,3236.9,3235.7,0.471]
[1762515161956,3.08991786,3236.4,3235.6,0.001]
[1762515162152,1.259712,3236.5,3235.6,0.472]
[1762515162358,0.48497535,3236.7,3235.6,0.472]
[1762515162559,1.259712,3236.9,3236.4,0.1829]
[1762515162758,0.48492931,3237.1,3236.4,0.1829]
[1762515162967,3.08909406,3237.2,3236.4,0.6539]
[1762515163366,1.259712,3237.1,3236.4,0.6539]
[1762515163567,1.259712,3237.1,3236.1,0.1829]
[1762515163568,3.08944612,3236.9,3236.1,0.1829]
[1762515163883,3.08934923,3237.0,3236.1,0.1829]
[1762515164084,1.259712,3237.0,3236.1,0.6539]
[1762515164484,4.34903704,3237.0,3236.1,0.6539]
[1762515164802,4.34882524,3237.2,3236.2,0.465]
[1762515165005,1.259712,3237.0,3236.2,0.465]
[1762515165314,0.48486786,3237.0,3236.2,0.465]
[1762515165457,1.74457986,3237.0,3236.2,0.465]
[1762515165665,0.48486786,3237.0,3236.2,0.465]
[1762515166174,1.259712,3236.6,3236.0,0.1825]
[1762515166377,3.08966223,3236.6,3236.0,0.1825]
[1762515166897,1.259712,3236.7,3236.1,0.1825]
[1762515167114,0.48486786,3237.0,3236.1,0.6475]
[1762515167262,0.48486786,3237.0,3236.2,0.02771048]
[1762515167463,3.08921646,3237.1,3236.2,0.465]
[1762515167795,1.259712,3236.9,3236.3,0.0277081]
[1762515168093,4.34863233,3237.4,3236.2,0.465]
[1762515168405,0.1965,3237.9,3236.1,0.1825]
[1762515168406,3.08953149,3236.8,3236.1,0.1825]
[1762515168612,0.4775,3237.7,3236.2,0.465]
[1762515168812,1.737212,3237.7,3236.2,0.465]
[1762515168977,1.259712,3236.9,3236.2,0.465]
[1762515169212,1.259712,3236.9,3235.6,0.001]
[1762515169213,1.259712,3237.3,3235.6,0.001]
[1762515169411,1.259712,3236.6,3235.6,0.001]
[1762515169735,1.259712,3235.7,3235.6,0.001]
[1762515170319,0.03863151,3235.7,3235.6,0.001]
[1762515170619,1.259712,3235.9,3235.6,0.001]
[1762515170932,3.090453,3235.8,3235.6,0.001]
[1762515171227,3.09052137,3235.7,3235.6,0.001]
[1762515171620,3.56802137,3235.7,3235.6,0.001]
[1762515173441,3.09052137,3235.7,3235.6,0.001]
[1762515173646,3.56802137,3235.7,3235.6,0.001]
[1762515173807,3.09052137,3235.7,3235.6,0.001]
[1762515174410,1.259712,3235.8,3235.6,0.001]
[1762515174717,3.12915288,3235.7,3235.6,0.001]
[1762515174894,3.09052137,3235.7,3235.6,0.001]
[1762515177831,4.35016243,3235.8,3235.6,0.001]
[1762515178016,4.35023337,3235.7,3235.6,0.001]
[1762515178227,1.259712,3235.7,3235.6,0.001]
[1762515178899,4.35023337,3235.7,3235.6,0.001]
[1762515180105,4.82773337,3235.7,3235.6,0.001]
[1762515181340,4.83533781,3235.7,3235.6,0.001]
[1762515181498,5.31283781,3235.7,3235.6,0.001]
[1762515181962,1.74481644,3235.7,3235.6,0.001]
[1762515182107,0.48510444,3235.7,3235.6,0.466]
[1762515182441,3.089026,3237.3,3235.6,0.466]
[1762515182629,3.0892825,3237.0,3236.7,0.1825]
[1762515182812,0.4775,3237.3,3236.0,0.1825]
[1762515183012,0.48510444,3237.4,3236.1,0.465]
[1762515183013,3.08930391,3237.0,3236.1,0.465]
[1762515183213,1.259712,3236.9,3236.1,0.465]
[1762515183425,3.08956666,3236.7,3236.1,0.465]
[1762515183627,3.08957118,3236.7,3236.1,0.465]
[1762515183940,1.259712,3236.9,3236.0,0.1825]
[1762515183941,1.259712,3236.2,3236.0,0.1825]
[1762515184461,1.259712,3236.2,3236.0,0.6475]
[1762515184839,1.259712,3236.4,3236.0,0.6475]
[1762515185041,0.4775,3237.7,3236.1,0.465]
[1762515185248,3.09153289,3236.8,3236.1,0.465]
[1762515185476,0.002,3236.8,3236.1,0.465]
[1762515185632,1.261712,3236.8,3236.1,0.465]
[1762515185990,1.259712,3236.4,3236.1,0.465]
[1762515186167,4.34941357,3236.6,3236.1,0.465]
[1762515186478,0.002,3236.8,3236.1,0.465]
[1762515186829,3.08967047,3236.6,3236.1,0.465]
[1762515187032,0.002,3236.8,3236.1,0.465]
[1762515187260,0.002,3236.8,3236.7,0.4727]
[1762515187534,0.002,3237.2,3236.7,0.9377]
[1762515187769,0.002,3237.2,3237.1,0.6552]
[1762515188078,0.002,3237.2,3236.8,0.465]
[1762515188079,4.35080133,3237.2,3236.8,0.465]
[1762515188280,1.259712,3237.1,3236.8,0.1825]
[1762515188435,3.09114811,3237.2,3236.8,0.1825]
[1762515188636,1.259712,3237.1,3236.8,0.1825]
[1762515188962,4.34890711,3237.1,3236.8,0.1825]
[1762515189134,4.34890711,3237.1,3237.0,0.4727]
[1762515189135,1.259712,3237.1,3237.0,0.4727]
[1762515189343,0.002,3237.2,3237.0,0.4727]
[1762515189556,0.002,3237.2,3237.1,0.9377]
[1762515190550,0.002,3237.2,3237.1,0.4727]
[1762515190768,0.002,3237.2,3236.8,0.1825]
[1762515191085,0.002,3237.2,3237.1,0.4727]
[1762515191232,0.002,3237.2,3237.1,0.96619361]
[1762515191436,0.00962464,3238.1,3237.1,0.9377]
[1762515191680,1.259712,3237.8,3237.2,0.465]
[1762515192110,0.002,3238.0,3237.7,0.4727]
[1762515192317,0.002,3238.2,3237.9,0.4727]
[1762515192474,0.002,3238.6,3238.1,0.6552]
[1762515192816,0.002,3238.6,3238.3,0.4727]
[1762515193031,0.002,3238.9,3238.3,0.9377]
[1762515193308,0.002,3239.5,3238.3,0.9377]
[1762515193309,0.002,3239.5,3238.4,0.02846035]
[1762515193459,0.002,3239.5,3238.4,0.465]
[1762515194170,3.08930094,3239.1,3238.4,0.465]
[1762515194357,0.002,3239.1,3238.4,0.465]
[1762515194555,3.08936764,3239.1,3238.4,0.465]
[1762515194790,0.002,3239.1,3238.4,0.465]
[1762515195377,1.259712,3239.0,3238.4,0.465]
[1762515195586,0.002,3239.1,3238.1,0.1825]
[1762515195587,1.261712,3239.1,3238.1,0.1825]
[1762515195790,1.261712,3239.1,3236.8,0.1835]
[1762515195791,1.259712,3238.6,3237.4,0.4624]
[1762515196099,3.08823657,3238.1,3237.4,0.4624]
[1762515196395,1.259712,3237.9,3237.4,0.4624]
[1762515196599,0.002,3238.3,3236.9,0.4624]
[1762515196600,3.0882033,3238.2,3236.9,0.4624]
[1762515196895,4.34805837,3238.0,3237.1,0.4624]
[1762515197102,1.259712,3237.5,3237.1,0.4624]
[1762515197405,3.09004324,3238.3,3237.2,0.4624]
[1762515197614,0.002,3238.3,3237.2,0.4624]
[1762515198113,0.002,3238.3,3238.2,0.1876]
[1762515198863,0.002,3238.3,3238.1,0.1876]
[1762515199064,0.002,3238.3,3237.5,0.4624]
[1762515200577,1.259712,3238.2,3237.5,0.4624]
[1762515200982,0.002,3238.3,3237.5,0.4624]
[1762515201300,1.259712,3238.2,3237.5,0.4624]
[1762515201502,0.002,3238.3,3237.5,0.4624]
[1762515201896,1.259712,3238.1,3237.5,0.4624]
[1762515202093,0.002,3238.3,3237.5,0.4624]
[1762515202307,0.002,3238.3,3236.8,0.1835]
[1762515202308,1.259712,3237.9,3236.8,0.1835]
[1762515202509,0.002,3238.3,3237.1,0.4624]
[1762515202992,1.259712,3237.8,3237.1,0.4624]
[1762515203207,0.48469434,3238.1,3237.1,0.4624]
[1762515204012,1.259712,3237.8,3237.1,0.4624]
[1762515204215,4.34807458,3238.0,3237.1,0.4624]
[1762515204617,0.48469434,3238.1,3237.1,0.4624]
[1762515205130,0.002,3238.3,3237.2,0.02848596]
[1762515205328,0.002,3238.3,3238.2,0.0475]
[1762515205681,0.002,3238.3,3238.2,0.5099]
[1762515206121,0.002,3238.3,3238.2,0.87256578]
[1762515206321,0.002,3238.3,3238.2,0.5099]
[1762515206620,0.002,3239.1,3238.2,0.5099]
[1762515206621,0.002,3239.1,3238.2,0.53836738]
[1762515207184,0.002,3239.1,3238.6,3.0876774]
[1762515207393,0.002,3239.1,3238.6,3.08772652]
[1762515207618,0.002,3239.1,3238.7,3.85877042]
[1762515207828,0.002,3239.1,3238.7,0.77117265]
[1762515207982,0.002,3239.1,3238.8,0.4624]
[1762515210701,0.002,3239.1,3238.5,0.4624]
[1762515210910,0.002,3239.1,3238.3,0.4624]
[1762515211931,0.002,3239.1,3238.2,0.0475]
[1762515212298,3.08928997,3239.1,3238.2,0.0475]
[1762515212494,0.49089215,3239.0,3238.0,0.1876]
[1762515212727,0.002,3239.1,3238.1,0.02846449]
[1762515212900,3.08762016,3238.8,3238.0,0.1876]
[1762515213097,1.259712,3238.9,3238.0,0.1876]
[1762515213297,0.198,3238.9,3238.0,0.1876]
[1762515213511,1.259712,3238.7,3238.0,0.1876]
[1762515213711,5.03608873,3238.9,3238.0,0.1876]
[1762515213912,4.34742582,3238.7,3238.0,0.1876]
[1762515214120,1.259712,3238.6,3238.0,0.1876]
[1762515214433,1.259712,3238.4,3237.5,0.4634]
[1762515214736,1.259712,3238.8,3237.5,0.4634]
[1762515214921,1.258912,3238.6,3237.5,0.4634]
[1762515215123,3.08772983,3238.7,3237.5,0.4634]
[1762515215507,0.6503,3238.9,3237.5,0.4634]
[1762515215927,3.08783412,3238.6,3237.5,0.4634]
[1762515216405,3.08767507,3238.7,3237.5,0.4634]
[1762515216662,0.4523,3238.8,3237.5,0.001]
[1762515216805,0.002,3239.1,3238.8,0.0475]
[1762515217437,1.261712,3239.1,3238.4,0.4624]
[1762515217622,1.261712,3239.1,3238.6,0.1876]
[1762515217828,0.002,3239.1,3238.6,0.1876]
[1762515218228,0.002,3239.1,3238.3,0.1876]
[1762515218619,0.002,3239.1,3238.4,0.4624]
[1762515219739,0.002,3239.1,3239.0,0.4774]
[1762515219937,0.002,3239.1,3238.4,0.4624]
[1762515224712,0.002,3239.1,3238.3,0.1876]
[1762515225045,0.002,3239.1,3238.0,0.1941]
[1762515225046,0.4656,3239.1,3238.0,0.1941]
[1762515225247,0.4656,3239.1,3238.1,0.02846374]
[1762515225420,1.259712,3238.6,3238.0,0.1941]
[1762515225616,0.5231,3238.1,3237.5,0.001]
[1762515225815,0.4656,3239.1,3237.5,0.001]
[1762515225816,1.259712,3238.7,3237.5,0.001]
[1762515226047,1.259712,3238.4,3237.5,0.001]
[1762515226248,3.08833879,3238.0,3237.5,0.001]
[1762515226447,0.1935,3237.6,3237.5,0.001]
[1762515226620,3.08852045,3237.8,3237.5,0.001]
[1762515226824,1.719812,3237.6,3237.5,0.001]
[1762515227024,1.259712,3237.6,3237.5,0.001]
[1762515227231,1.719812,3237.6,3237.5,0.001]
[1762515227555,1.259712,3237.6,3237.5,0.001]
[1762515227964,2.183412,3237.6,3237.5,0.001]
[1762515228326,1.719812,3237.6,3237.5,0.001]
[1762515228526,5.27211968,3237.6,3237.5,0.001]
[1762515228947,5.27211968,3237.6,3237.1,0.001]
[1762515228948,3.08908933,3237.2,3237.1,0.001]
[1762515229218,4.34880133,3237.2,3237.1,0.001]
[1762515229425,4.81240133,3237.2,3237.1,0.001]
[1762515230713,4.81240133,3237.2,3237.1,0.001]
[1762515231317,4.34889676,3237.1,3237.0,0.001]
[1762515231646,4.81249676,3237.1,3237.0,0.001]